bitfinex-derivatives/quotes_ETHF0:USTF0_20251025
["timestamp","ask_amount","ask_price","bid_price","bid_amount"]
[1761421821597,0.56045447,3958.9,3958.8,0.7891]
[1761421831614,0.56045447,3958.9,3958.8,1.4704034]
[1761421832314,0.56045447,3958.9,3958.8,1.47024566]
[1761421833216,0.79005447,3958.9,3958.8,1.47024566]
[1761421833813,0.79005447,3958.9,3958.8,0.7891]
[1761421839824,0.3296,3958.8,3958.6,9.56314566]
[1761421840114,0.45035447,3958.9,3958.6,9.77814566]
[1761421840115,0.7624,3958.7,3958.6,9.77814566]
[1761421840318,0.7624,3958.7,3958.6,10.11314566]
[1761421840521,0.7624,3958.7,3958.6,10.34334566]
[1761421841221,0.7624,3958.7,3958.6,1.46134566]
[1761421842021,0.7624,3958.7,3958.6,0.7802]
[1761421848126,0.7624,3958.7,3958.6,1.46220053]
[1761421852232,0.55015447,3958.9,3958.8,0.7802]
[1761421854227,0.00275447,3958.9,3958.8,0.7802]
[1761421855331,0.33235447,3958.9,3958.8,0.7802]
[1761421861039,0.55985447,3958.9,3958.8,0.7802]
[1761421865031,1.468978,3958.9,3958.8,0.7802]
[1761421867242,0.55985447,3958.9,3958.8,0.7802]
[1761421867627,0.77595447,3958.9,3958.8,0.7802]
[1761421868735,0.77595447,3958.9,3958.8,0.4452]
[1761421868933,0.3385,3958.8,3958.7,0.68203165]
[1761421869129,0.7948,3958.8,3958.7,0.90283165]
[1761421869332,0.7948,3958.8,3958.7,1.22113165]
[1761421869535,0.7948,3958.8,3958.7,1.45233165]
[1761421870039,0.7948,3958.8,3958.7,0.68203165]
[1761421871436,0.7948,3958.8,3958.7,0.90283165]
[1761421871843,0.7948,3958.8,3958.7,1.22113165]
[1761421874640,0.7948,3958.8,3958.7,0.5391]
[1761421877048,0.7948,3958.8,3958.7,0.7703]
[1761421902457,0.7948,3958.8,3958.7,1.6736619]
[1761421902662,0.5713,3958.8,3958.7,1.6736619]
[1761421902863,0.5713,3958.8,3958.7,0.7703]
[1761421903351,0.5713,3958.8,3958.7,1.67954501]
[1761421904163,0.00275447,3958.9,3958.8,1.24613]
[1761421904359,0.00275447,3958.9,3958.8,11.4770376]
[1761421904761,0.00275447,3958.9,3958.8,10.12313]
[1761421906364,0.00275447,3958.9,3958.8,11.03128762]
[1761421907462,0.79075447,3958.9,3958.8,2.15428762]
[1761421907661,0.79075447,3958.9,3958.8,11.03028762]
[1761421911169,0.00275447,3958.9,3958.8,11.03028762]
[1761421911561,0.34215447,3958.9,3958.8,11.03028762]
[1761421914764,0.34215447,3958.9,3958.8,10.12213]
[1761421916275,0.57625447,3958.9,3958.8,10.12213]
[1761421926884,0.79175447,3958.9,3958.8,10.12213]
[1761421931994,0.79175447,3958.9,3958.8,10.01075077]
[1761421932186,0.79175447,3958.9,3958.7,0.68118112]
[1761421932187,0.3413,3958.8,3958.7,0.68118112]
[1761421932489,0.7955,3958.8,3958.7,0.68118112]
[1761421932695,0.7955,3958.8,3958.7,0.90668112]
[1761421934693,0.7955,3958.8,3958.7,1.22558112]
[1761421936286,0.7955,3958.8,3958.7,0.5444]
[1761421937089,0.7955,3958.7,3958.6,0.90668112]
[1761421941996,0.7955,3958.7,3958.6,1.22558112]
[1761421942701,0.7955,3958.7,3958.6,1.46008112]
[1761421946097,0.22465447,3958.9,3958.7,0.45464]
[1761421946301,0.00275447,3958.9,3958.8,0.46]
[1761421946800,0.34405447,3958.9,3958.8,0.7789]
[1761421949803,0.00275447,3958.9,3958.8,0.7789]
[1761421962412,0.79315447,3958.9,3958.8,0.7789]
[1761421965716,0.79315447,3958.9,3958.8,1.45977176]
[1761421970420,0.79315447,3958.9,3958.8,0.7789]
[1761421984229,0.79315447,3958.9,3958.8,1.45983445]
[1761421985627,0.79315447,3958.9,3958.8,1.14093445]
[1761421986321,0.79315447,3958.9,3958.8,1.46393445]
[1761421986722,0.79315447,3958.9,3958.8,0.783]
[1761421995030,0.00275447,3958.9,3958.8,0.783]
[1761421995539,0.33365447,3958.9,3958.8,0.783]
[1761421995734,0.54985447,3958.9,3958.8,0.783]
[1761421996139,0.54985447,3958.9,3958.8,1.69077087]
[1761422001137,0.77155447,3958.9,3958.8,2.14540087]
[1761422004752,0.77155447,3958.9,3958.8,1.23763]
[1761422005746,0.77155447,3958.9,3958.8,0.45463]
[1761422006050,0.77155447,3958.9,3958.8,0.68963]
[1761422006849,0.77155447,3958.9,3958.8,1.00813]
[1761422007453,0.77155447,3958.9,3958.8,1.23163]
[1761422009048,0.77155447,3958.9,3958.8,0.777]
[1761422013051,0.77155447,3958.9,3958.7,0.45464]
[1761422013253,0.77155447,3958.9,3958.5,0.00243795]
[1761422013254,0.7688,3958.6,3958.5,0.00243795]
[1761422015653,0.7688,3958.6,3958.5,0.23743795]
[1761422018657,0.7688,3958.6,3958.5,0.79773795]
[1761422028670,0.5558,3958.6,3958.5,0.79773795]
[1761422028965,0.7797,3958.6,3958.5,0.79773795]
[1761422032168,0.7797,3958.6,3958.5,0.23743795]
[1761422033070,0.7797,3958.6,3958.5,0.00243795]
[1761422041972,0.7797,3958.6,3958.5,0.78503795]
[1761422042176,0.7797,3958.6,3958.5,1.46545323]
[1761422042967,0.7797,3958.6,3958.5,1.12055323]
[1761422044176,0.7797,3958.6,3958.5,1.46545323]
[1761422047777,0.5558,3958.6,3958.5,1.46545323]
[1761422048377,0.7874,3958.6,3958.5,1.46545323]
[1761422049977,0.7874,3958.6,3958.5,1.46642321]
[1761422061181,0.7874,3958.6,3958.5,0.78503795]
[1761422061393,0.7874,3958.6,3958.5,1.46643009]
[1761422073404,0.7874,3958.6,3958.5,1.12153009]
[1761422078209,0.7874,3958.6,3958.5,0.90653009]
[1761422086412,0.7874,3958.6,3958.5,1.25583009]
[1761422087018,0.7874,3958.6,3958.5,1.47903009]
[1761422094722,0.7874,3958.6,3958.5,0.79763795]
[1761422099221,1.69649596,3958.6,3958.5,0.44833795]
[1761422099923,1.69649596,3958.6,3958.5,0.79763795]
[1761422100231,0.7874,3958.6,3958.5,0.79763795]
[1761422102025,0.90909596,3958.7,3958.6,1.25466]
[1761422102323,0.00275447,3958.9,3958.8,1.25463]
[1761422102529,0.00275447,3958.9,3958.8,2.16280823]
[1761422103322,0.00275447,3958.9,3958.8,1.25463]
[1761422105228,0.00275447,3958.9,3958.8,2.16150288]
[1761422110236,0.00275447,3958.9,3958.8,1.25463]
[1761422111038,0.33355447,3958.9,3958.8,1.25463]
[1761422111240,0.00275447,3958.9,3958.8,1.25463]
[1761422119145,0.54705447,3958.9,3958.8,1.93411362]
[1761422125348,0.54705447,3958.9,3958.8,1.25463]
[1761422131448,0.54705447,3958.9,3958.8,2.16150288]
[1761422132252,0.54705447,3958.9,3958.8,1.25463]
[1761422133450,0.54705447,3958.9,3958.8,2.162506]
[1761422134752,0.54705447,3958.9,3958.8,1.25463]
[1761422144351,0.33355447,3958.9,3958.8,1.25463]
[1761422146262,0.55955447,3958.9,3958.8,1.25463]
[1761422151864,0.79455447,3958.9,3958.8,1.25463]
[1761422152067,0.79455447,3958.9,3958.8,0.8]
[1761422156873,0.79455447,3958.9,3958.8,1.70788628]
[1761422159173,0.79455447,3958.9,3958.8,0.8]
[1761422163281,0.00275447,3958.9,3958.8,0.8]
[1761422163581,0.00275447,3958.9,3958.8,1.70788628]
[1761422164983,1.36267589,3959.6,3958.8,1.70788628]
[1761422164984,0.3495,3960.0,3959.9,0.7927]
[1761422165170,0.3495,3960.0,3959.5,0.1343]
[1761422165171,0.5672,3960.1,3960.0,0.7927]
[1761422165377,0.7942,3960.1,3960.0,0.7927]
[1761422165878,0.79649537,3960.1,3960.0,0.7927]
[1761422168877,0.79649537,3960.1,3960.0,0.4554]
[1761422169082,0.7614,3959.8,3959.7,0.5605]
[1761422169683,0.7614,3959.8,3959.7,0.7915]
[1761422172690,0.7614,3959.8,3959.7,0.2271]
[1761422178584,0.3273,3959.7,3959.4,10.11206]
[1761422178892,0.7614,3959.5,3959.4,9.77866]
[1761422179284,0.7614,3959.5,3959.4,10.11206]
[1761422181496,0.8982,3959.5,3959.4,10.11206]
[1761422183999,0.8982,3959.5,3959.4,1.24606]
[1761422185294,0.8982,3959.5,3958.8,0.5605]
[1761422185295,0.3273,3959.1,3958.8,0.5605]
[1761422185499,0.7614,3958.9,3958.8,0.5605]
[1761422187802,0.7614,3958.9,3958.8,0.2271]
[1761422198009,0.7614,3958.9,3958.6,0.78805]
[1761422198202,0.3339,3958.8,3958.6,1.01665]
[1761422198711,0.4597,3958.7,3958.6,1.01665]
[1761422199010,0.7936,3958.7,3958.6,1.01665]
[1761422202312,0.7936,3958.7,3958.6,0.2286]
[1761422205012,0.7936,3958.6,3958.5,0.00243795]
[1761422221834,0.7936,3958.6,3958.5,0.22933795]
[1761422228946,0.7936,3958.6,3958.5,0.00243795]
[1761422252371,0.7936,3958.6,3958.5,0.54723795]
[1761422252568,0.7936,3958.6,3958.5,0.78033795]
[1761422257074,0.7936,3958.6,3958.5,1.46136044]
[1761422257980,0.5655,3958.6,3958.5,1.46136044]
[1761422261980,0.7921,3958.6,3958.5,1.46136044]
[1761422265788,1.7019005,3958.6,3958.5,0.78033795]
[1761422271398,1.7019005,3958.6,3958.5,0.22933795]
[1761422272998,1.7019005,3958.6,3958.5,0.00243795]
[1761422275899,0.7921,3958.6,3958.5,0.68346044]
[1761422279502,0.7921,3958.6,3958.5,1.22346044]
[1761422279904,0.3339,3958.6,3958.5,1.45796044]
[1761422280201,0.3339,3958.6,3958.5,1.58996044]
[1761422281702,1.50150075,3959.0,3958.5,1.58996044]
[1761422281703,0.3199,3959.0,3958.6,0.454]
[1761422282000,0.5374,3959.0,3958.9,0.7717]
[1761422282201,0.5374,3959.0,3958.9,1.45164692]
[1761422285207,0.5374,3959.0,3958.9,0.7717]
[1761422286506,0.7547,3959.0,3958.9,0.7717]
[1761422307727,0.8833,3959.0,3958.9,0.7717]
[1761422308728,0.8833,3959.0,3958.9,0.454]
[1761422309223,0.8833,3959.0,3958.9,0.2275]
[1761422309423,0.7678,3958.9,3958.8,0.67922131]
[1761422309817,0.7678,3958.9,3958.8,0.89352131]
[1761422310228,0.7678,3958.9,3958.8,1.22052131]
[1761422311230,0.7678,3958.9,3958.8,0.5413]
[1761422314027,0.7678,3958.9,3958.8,0.2143]
[1761422314829,0.7678,3958.9,3958.8,0.5413]
[1761422315827,0.7678,3958.9,3958.8,1.44858238]
[1761422316334,0.7678,3958.9,3958.8,1.68028238]
[1761422340844,0.7678,3958.9,3958.8,2.13491238]
[1761422341052,0.9098005,3959.3,3959.2,0.8108]
[1761422341254,0.9098005,3959.4,3959.3,1.26537]
[1761422341959,1.2416005,3959.4,3959.3,1.26537]
[1761422342558,0.9098005,3959.6,3959.5,0.45455]
[1761422342765,0.9098005,3959.6,3959.5,1.40025]
[1761422342961,0.3318,3959.7,3959.6,0.8108]
[1761422343268,0.5492,3959.7,3959.6,0.8108]
[1761422344969,0.7727,3959.7,3959.6,0.8108]
[1761422345267,0.8996,3959.5,3959.4,0.91382508]
[1761422345661,0.8996,3959.5,3959.4,1.49142508]
[1761422346055,0.9098005,3959.9,3959.4,1.49142508]
[1761422346258,0.9098005,3959.9,3959.3,0.45456]
[1761422346259,0.2174,3959.7,3959.6,0.8108]
[1761422346760,0.7727,3959.7,3959.6,0.8108]
[1761422352666,0.7727,3959.7,3959.6,0.4646]
[1761422352867,0.7727,3959.7,3959.6,0.7944]
[1761422354567,0.2287,3959.9,3959.8,0.2161]
[1761422354764,0.8043,3959.9,3959.8,0.2161]
[1761422358767,0.8043,3959.9,3959.8,0.5459]
[1761422365180,2.16900075,3959.9,3959.8,0.5459]
[1761422365882,1.71265286,3959.9,3959.8,0.5459]
[1761422368283,0.8043,3959.9,3959.8,0.5459]
[1761422370784,0.8043,3959.9,3959.8,0.2161]
[1761422372487,2.16900075,3959.9,3959.8,0.2161]
[1761422388594,2.16900075,3959.9,3959.7,0.45453]
[1761422388595,0.3413,3959.8,3959.7,0.68493]
[1761422388801,0.7825,3959.8,3959.7,0.68493]
[1761422389001,0.7825,3959.8,3959.7,0.2304]
[1761422390503,0.7825,3959.8,3959.5,0.45454]
[1761422390703,0.7825,3959.6,3959.5,0.5798]
[1761422393007,0.7825,3959.6,3959.5,0.2304]
[1761422393602,0.915,3959.5,3959.4,0.67950946]
[1761422395908,0.3413,3959.4,3959.3,1.36447946]
[1761422396310,0.7825,3959.4,3959.3,1.36447946]
[1761422397109,0.7825,3959.4,3959.3,0.68497]
[1761422398603,0.7825,3959.4,3959.3,1.03437]
[1761422398910,0.7825,3959.4,3959.3,1.25747]
[1761422399516,1.25086184,3959.5,3959.4,0.8029]
[1761422399810,0.3413,3959.5,3959.4,0.8029]
[1761422400116,0.90956184,3959.6,3959.5,1.33625]
[1761422400307,1.24746184,3959.6,3959.5,1.33625]
[1761422400805,1.46536184,3959.6,3959.5,1.20415]
[1761422404214,0.90956184,3959.8,3959.7,0.45453]
[1761422404417,0.90956184,3960.0,3959.9,0.4545]
[1761422404616,0.90956184,3960.0,3959.9,1.2041]
[1761422404809,1.46536184,3960.0,3959.9,1.2041]
[1761422405717,0.90956184,3960.0,3959.9,1.2041]
[1761422405916,0.00229537,3960.1,3960.0,0.8817]
[1761422406118,0.55809537,3960.1,3960.0,0.7496]
[1761422406318,0.78149537,3960.1,3960.0,0.7496]
[1761422408917,0.81129351,3960.4,3960.1,0.3384]
[1761422409215,0.3187,3960.8,3960.0,0.137]
[1761422409216,0.7788,3960.8,3960.7,0.7935]
[1761422410018,0.78174568,3960.8,3960.7,0.7935]
[1761422410313,0.3647,3960.5,3960.4,0.2288]
[1761422410518,0.915,3960.5,3960.4,0.2288]
[1761422410714,0.7788,3960.4,3960.3,0.90798485]
[1761422410916,0.7788,3960.4,3960.3,1.24638485]
[1761422411125,0.7788,3960.4,3960.2,0.45447]
[1761422411126,0.4601,3960.4,3960.2,0.67918485]
[1761422411419,0.915,3960.0,3959.9,0.90798485]
[1761422411617,0.915,3960.0,3959.9,1.24638485]
[1761422411819,0.915,3960.0,3959.9,1.47268485]
[1761422412325,0.7788,3960.0,3959.9,1.47268485]
[1761422414327,0.7788,3960.0,3959.9,0.7935]
[1761422416325,0.915,3960.0,3959.9,0.7935]
[1761422417027,0.5472,3960.0,3959.9,0.7935]
[1761422420032,0.3187,3960.4,3960.0,0.4754]
[1761422420228,0.3187,3960.4,3960.3,0.7935]
[1761422420532,0.5472,3960.4,3960.3,0.7935]
[1761422420935,0.3187,3960.4,3960.3,0.7935]
[1761422421132,0.5472,3960.7,3960.6,1.24792]
[1761422421329,0.5472,3960.7,3960.6,0.7935]
[1761422423830,0.3187,3960.7,3960.6,0.7935]
[1761422425936,0.00294568,3960.8,3960.7,1.24791]
[1761422426136,0.78174568,3960.8,3960.7,0.7935]
[1761422438747,0.00294568,3960.8,3960.7,0.7935]
[1761422443052,0.00294568,3960.8,3960.7,9.6595]
[1761422443452,0.00294568,3960.8,3960.7,10.56505004]
[1761422445851,0.00294568,3960.8,3960.7,10.33778734]
[1761422448258,0.00294568,3960.8,3960.7,9.6595]
[1761422471886,0.32564568,3960.8,3960.7,9.6595]
[1761422472290,0.32564568,3960.8,3960.7,11.02042357]
[1761422472592,0.5374,3961.5,3961.4,0.7657]
[1761422472883,0.771,3961.5,3961.4,0.7657]
[1761422473089,0.898,3961.5,3961.4,0.7657]
[1761422473590,0.90057943,3961.5,3961.4,0.76813511]
[1761422473985,0.90057943,3961.5,3961.4,0.44583511]
[1761422474185,0.90057943,3961.5,3961.0,0.67952392]
[1761422474391,0.4483,3960.7,3960.6,0.67952392]
[1761422474593,0.771,3960.7,3960.6,0.67952392]
[1761422475284,0.771,3960.6,3960.5,7.32252392]
[1761422475480,0.771,3960.6,3960.5,7.32576466]
[1761422476487,0.771,3960.6,3960.5,0.68276466]
[1761422477197,0.771,3960.6,3960.5,0.00324074]
[1761422479799,0.771,3959.7,3959.6,0.541]
[1761422480188,0.771,3959.7,3959.6,1.22024]
[1761422480384,0.3227,3960.9,3959.7,1.13633]
[1761422480696,0.771,3960.9,3960.8,0.7657]
[1761422499513,0.771,3960.9,3960.8,0.2187]
[1761422499708,0.127,3961.0,3960.4,9.56310896]
[1761422499709,0.3439,3960.8,3960.6,0.333]
[1761422499909,0.4328,3960.7,3960.6,0.5636]
[1761422500110,0.7767,3960.7,3960.6,0.7955]
[1761422515919,0.7767,3960.7,3960.6,1.47460896]
[1761422517119,0.7767,3960.7,3960.6,0.67910896]
[1761422517310,0.3439,3960.6,3960.5,0.67910896]
[1761422517916,0.7767,3960.6,3960.5,0.67910896]
[1761422518318,0.7767,3960.6,3960.5,0.90970896]
[1761422519418,0.7767,3960.6,3960.5,0.67910896]
[1761422519617,0.7767,3960.6,3960.0,1.69121793]
[1761422519618,0.9108,3960.5,3960.4,0.67910896]
[1761422519811,0.7609,3960.3,3960.2,0.67910896]
[1761422521320,0.3292,3960.2,3960.1,0.89230896]
[1761422521519,0.7609,3960.2,3960.1,0.89230896]
[1761422521914,0.7609,3960.2,3960.1,1.21580896]
[1761422522215,0.7609,3960.2,3960.1,1.44700896]
[1761422523118,0.7609,3960.2,3960.1,0.67910896]
[1761422523320,0.7609,3960.1,3960.0,0.67910896]
[1761422523523,0.8962,3960.0,3959.9,0.68021401]
[1761422524022,0.8962,3960.0,3959.9,0.89341401]
[1761422524212,0.8962,3960.0,3959.9,0.2132]
[1761422524616,0.8962,3960.0,3959.9,0.5367]
[1761422528220,0.8962,3960.0,3959.9,0.7679]
[1761422528414,0.3237,3960.4,3960.3,0.7541]
[1761422528614,0.7783,3960.4,3960.3,0.7541]
[1761422529320,0.7783,3960.4,3960.2,0.45447]
[1761422529520,0.7783,3960.3,3960.2,1.20857]
[1761422536126,0.3237,3960.5,3960.4,0.99494]
[1761422536330,0.3237,3960.5,3960.4,1.20854]
[1761422538432,0.5454,3960.5,3960.4,1.20854]
[1761422544437,0.9179,3960.5,3960.4,1.20854]
[1761422544633,0.9179,3960.5,3960.4,0.212]
[1761422545248,0.9179,3960.5,3960.4,0.7541]
[1761422548846,0.9179,3960.5,3960.4,0.4256]
[1761422550851,0.9179,3960.5,3960.4,0.7541]
[1761422551938,0.9179,3960.5,3960.4,0.4256]
[1761422557254,0.9179,3960.5,3960.4,1.10515904]
[1761422558255,0.9179,3960.5,3960.4,0.4256]
[1761422562156,0.9179,3960.5,3960.4,1.10633128]
[1761422569258,0.9179,3960.5,3960.4,1.45083128]
[1761422579173,0.9179,3960.5,3960.4,0.7701]
[1761422585871,1.5019874,3960.5,3960.1,1.44723128]
[1761422586076,0.7907,3960.2,3960.1,1.44723128]
[1761422595880,0.7907,3960.2,3960.1,0.7665]
[1761422598181,0.5593,3960.2,3960.1,1.67197862]
[1761422598378,0.3368,3960.4,3960.3,0.7975]
[1761422598584,0.3368,3960.4,3960.3,1.93218303]
[1761422599380,0.3368,3960.4,3960.3,1.93219303]
[1761422600689,0.5656,3960.4,3960.3,1.93219303]
[1761422601684,0.792,3960.4,3960.3,1.93219303]
[1761422601985,0.792,3960.4,3960.3,1.13183303]
[1761422602180,0.792,3960.4,3960.3,0.91270168]
[1761422602377,0.792,3960.4,3960.3,0.68040168]
[1761422602581,0.792,3960.4,3960.3,0.91270168]
[1761422602881,0.792,3960.4,3960.3,0.2323]
[1761422603288,0.792,3960.4,3960.3,0.5782]
[1761422606290,0.792,3960.4,3960.3,1.25891876]
[1761422609592,0.792,3960.4,3960.3,0.91301876]
[1761422609797,0.792,3960.3,3960.2,0.68071876]
[1761422612601,0.3368,3960.2,3960.1,0.91301876]
[1761422613001,0.792,3960.2,3960.1,0.91301876]
[1761422614200,0.792,3960.2,3960.1,1.25891876]
[1761422614999,0.792,3960.2,3960.1,0.91301876]
[1761422615201,0.792,3960.2,3960.1,0.2323]
[1761422615897,0.792,3960.2,3960.1,0.91301876]
[1761422616293,0.792,3960.2,3960.1,0.2323]
[1761422616801,0.3368,3960.1,3960.0,0.68071876]
[1761422617000,0.792,3959.9,3959.8,0.91301876]
[1761422617203,0.792,3959.9,3959.8,0.2323]
[1761422622810,0.7667,3959.8,3959.7,0.00310366]
[1761422624603,0.7667,3959.8,3959.7,0.56520366]
[1761422624804,0.7667,3959.8,3959.7,0.79580366]
[1761422630815,0.7667,3959.8,3959.7,0.46700366]
[1761422631313,0.7667,3959.8,3959.7,0.23640366]
[1761422633816,0.7667,3959.8,3959.7,0.00310366]
[1761422635117,0.7667,3959.8,3959.7,0.23640366]
[1761422635320,0.7667,3959.8,3959.7,0.00310366]
[1761422643615,0.7667,3959.8,3959.7,0.22560366]
[1761422643810,0.7667,3959.8,3959.7,0.56920366]
[1761422645522,0.7667,3959.8,3959.7,0.22560366]
[1761422646122,0.7667,3959.8,3959.7,0.00310366]
[1761422652728,1.6744874,3959.8,3959.7,0.00310366]
[1761422654433,0.7667,3959.8,3959.7,0.00310366]
[1761422656028,1.67537465,3959.8,3959.7,0.00310366]
[1761422662429,0.7667,3959.8,3959.7,0.00310366]
[1761422665439,1.67586384,3959.8,3959.7,0.00310366]
[1761422665943,0.7667,3959.8,3959.7,0.00310366]
[1761422671134,0.7667,3959.8,3959.7,0.57730366]
[1761422671342,0.5478,3959.8,3959.7,0.79220366]
[1761422671542,0.321,3959.8,3959.7,0.79220366]
[1761422674645,0.90920947,3959.9,3959.8,1.24362]
[1761422674839,0.3483,3960.0,3959.9,0.7891]
[1761422675948,1.25750947,3960.0,3959.9,0.7891]
[1761422677047,0.3483,3960.0,3959.9,0.7891]
[1761422681351,1.25310947,3960.1,3960.0,1.20619]
[1761422681649,1.25310947,3960.1,3960.0,1.34029]
[1761422682151,0.3439,3960.1,3960.0,1.34029]
[1761422683850,0.90920947,3960.2,3960.1,0.7517]
[1761422684746,1.25310947,3960.2,3960.1,0.7517]
[1761422685452,1.47200947,3960.2,3960.1,0.7517]
[1761422685952,0.5628,3960.2,3960.1,0.7517]
[1761422701260,1.47200947,3960.2,3960.1,0.7517]
[1761422701462,0.5628,3960.2,3960.1,0.7517]
[1761422702558,1.23580947,3960.3,3960.2,0.7918]
[1761422702763,1.23580947,3960.4,3960.3,0.3523]
[1761422702963,1.94532768,3961.0,3960.3,0.3523]
[1761422702964,0.90920947,3960.5,3960.4,0.3523]
[1761422703264,0.90920947,3960.5,3960.3,0.66865]
[1761422703265,1.23544848,3960.8,3960.7,0.7918]
[1761422703565,1.45024848,3960.8,3960.7,0.7918]
[1761422704257,0.5414,3960.8,3960.7,0.7918]
[1761422704658,0.7697,3960.8,3960.7,0.7918]
[1761422704863,1.67854848,3960.8,3960.7,0.2253]
[1761422705259,0.7697,3960.8,3960.7,0.2253]
[1761422710867,0.7697,3960.8,3960.7,0.7926]
[1761422725978,1.67854848,3960.8,3960.7,0.7926]
[1761422727179,1.67854848,3960.8,3960.7,0.4518]
[1761422727385,1.67854848,3960.8,3960.7,0.7926]
[1761422729082,0.7697,3960.8,3960.7,0.7926]
[1761422736003,1.67862822,3960.8,3960.7,0.7926]
[1761422739204,1.67862822,3960.8,3960.7,0.4518]
[1761422739404,1.67862822,3960.8,3960.7,0.7823]
[1761422746021,0.7697,3960.8,3960.7,0.2253]
[1761422755022,0.7697,3960.8,3960.5,0.45443]
[1761422755324,0.7889,3960.6,3960.5,0.45443]
[1761422755825,0.7889,3960.6,3960.5,0.66723]
[1761422760331,0.7889,3960.6,3960.5,1.22413]
[1761422765929,1.69802871,3960.6,3960.5,1.22413]
[1761422767237,1.69802871,3960.6,3960.5,0.66723]
[1761422767434,0.7889,3960.6,3960.5,1.22413]
[1761422771742,0.7889,3960.6,3960.5,0.45443]
[1761422773937,0.4481,3960.3,3960.2,1.93335712]
[1761422774143,0.7997,3960.3,3960.2,1.93335712]
[1761422775252,0.7997,3960.3,3960.2,1.25177]
[1761422775745,0.7997,3960.3,3960.2,0.67797]
[1761422776152,0.7997,3960.3,3960.2,1.02967]
[1761422776453,0.7997,3960.3,3960.2,0.7973]
[1761422776654,0.7997,3960.3,3960.2,1.36228933]
[1761422780652,0.7997,3960.3,3960.2,0.90781933]
[1761422780954,0.7997,3960.3,3960.1,1.58579933]
[1761422780955,0.3516,3960.2,3960.1,1.58579933]
[1761422781147,0.7997,3960.2,3960.1,1.58579933]
[1761422782656,0.7997,3960.2,3960.1,1.36229933]
[1761422782858,0.7997,3960.2,3960.1,0.45448]
[1761422783056,0.7997,3960.2,3960.1,1.13529818]
[1761422783255,0.7997,3960.2,3960.1,0.45448]
[1761422785355,1.26080966,3960.4,3960.1,0.3517]
[1761422785652,0.127,3961.0,3960.4,0.4456]
[1761422785653,1.26080966,3960.7,3960.4,0.4456]
[1761422785962,0.7997,3960.7,3960.6,0.2235]
[1761422786253,0.2134,3960.4,3960.3,0.5752]
[1761422786460,0.7997,3960.4,3960.3,0.5752]
[1761422787061,0.7997,3960.4,3960.3,0.7973]
[1761422789856,0.90920966,3960.7,3960.3,0.7973]
[1761422790057,0.7997,3960.6,3960.5,0.7973]
[1761422790261,0.3516,3960.3,3960.2,0.68081818]
[1761422790451,0.7997,3960.3,3960.2,0.68081818]
[1761422790963,0.7997,3960.3,3960.2,0.90431818]
[1761422793368,0.7997,3960.3,3960.2,1.47811818]
[1761422795974,0.7997,3960.3,3960.2,0.7973]
[1761422805173,0.5622,3960.5,3960.4,0.7891]
[1761422805774,0.7949,3960.5,3960.4,1.24355]
[1761422805975,0.7949,3960.5,3960.4,0.7891]
[1761422806174,0.7949,3960.5,3960.4,1.46991818]
[1761422806879,0.7949,3960.5,3960.2,0.68081818]
[1761422806880,0.7949,3960.3,3960.2,0.68081818]
[1761422807182,0.7949,3960.3,3960.2,1.24271818]
[1761422807380,0.7949,3960.3,3960.2,1.46991818]
[1761422808481,0.7949,3960.3,3960.2,1.13371818]
[1761422808787,0.7949,3960.3,3960.2,0.90651818]
[1761422810484,0.7949,3960.3,3960.2,0.7891]
[1761422811385,0.4467,3960.3,3960.2,0.68050004]
[1761422811684,0.4467,3960.3,3960.0,1.24240004]
[1761422812079,0.7949,3960.1,3960.0,1.24240004]
[1761422812480,0.7949,3960.1,3960.0,0.90620004]
[1761422814185,0.7949,3960.1,3960.0,1.24240004]
[1761422815691,0.7949,3960.1,3960.0,1.46960004]
[1761422816092,0.7949,3960.1,3960.0,0.7891]
[1761422817992,0.5622,3960.1,3960.0,0.7891]
[1761422818195,0.3482,3960.2,3960.1,0.7891]
[1761422818495,0.5622,3960.2,3960.1,0.7891]
[1761422819985,0.7949,3960.2,3960.1,0.7891]
[1761422827001,0.5622,3960.2,3960.1,0.7891]
[1761422833604,0.5448,3960.4,3960.3,0.454]
[1761422833810,0.5448,3960.4,3960.3,0.7822]
[1761422834411,0.7732,3960.4,3960.3,0.7822]
[1761422836110,1.68240966,3960.4,3960.3,0.7822]
[1761422839214,1.45400966,3960.4,3960.3,0.7822]
[1761422839512,0.3255,3960.5,3960.4,0.7822]
[1761422839712,0.5448,3960.5,3960.4,0.7822]
[1761422840811,0.3255,3960.5,3960.4,0.7822]
[1761422841910,0.3255,3960.6,3960.5,0.3282]
[1761422842207,0.5448,3960.6,3960.5,0.7822]
[1761422842915,0.7732,3960.6,3960.5,0.7822]
[1761422844506,0.5448,3960.6,3960.5,0.7822]
[1761422856130,1.45400966,3960.6,3960.5,0.7822]
[1761422861530,1.68450966,3960.6,3960.5,0.7822]
[1761422866134,0.7753,3960.6,3960.5,0.7822]
[1761422870340,0.7753,3960.6,3960.5,1.46270004]
[1761422876047,0.7753,3960.6,3960.5,0.7822]
[1761422880945,1.68450966,3960.6,3960.5,0.454]
[1761422881148,1.68450966,3960.6,3960.5,0.2229]
[1761422886056,0.7753,3960.6,3960.5,0.2229]
[1761422891361,0.7753,3960.6,3960.5,0.7926]
[1761422892660,0.7753,3960.6,3960.5,0.4409]
[1761422895363,0.7753,3960.6,3960.5,0.2229]
[1761422898165,0.7753,3960.6,3960.5,0.7926]
[1761422900658,0.5707,3960.8,3960.7,0.7907]
[1761422900857,0.5707,3960.8,3960.7,1.47079155]
[1761422901657,0.3518,3960.8,3960.7,1.47079155]
[1761422902268,0.5707,3961.1,3961.0,0.7907]
[1761422902463,0.7938,3961.1,3961.0,0.7907]
[1761422905273,1.26100966,3961.2,3961.1,0.45437]
[1761422905575,1.26100966,3961.2,3961.1,1.24507]
[1761422905576,0.5707,3961.2,3961.1,1.24507]
[1761422906074,1.47990966,3961.2,3961.1,1.24507]
[1761422906474,0.5707,3961.2,3961.1,1.24507]